{"text_format":"3","workbook":"xlsx","n_sheets":7,"sheets":["Principiante","Intermedio","Experto","Solución nivel principiante","Solución nivel intermedio","Solución nivel experto","Instrucciones"],"not_rendered":{"defined_names":1},"read":"whole","date_system":"1900"}

{"sheet":"Principiante","index":0,"n_rows":15,"n_cols":31,"rows_kept":15,"merged":[[4,1,4,9],[4,11,4,19],[4,21,4,29]]}
[{"$nulls":30}," "]
[]
[]
[]
[null,"Rompecabezas nivel principiante 1",{"$nulls":9},"Rompecabezas nivel principiante 2",{"$nulls":9},"Rompecabezas nivel principiante 3"]
[]
[null,9,2,6,null,null,7,null,8,null,null,3,null,4,1,{"$nulls":7},6,3,null,null,8]
[null,5,null,null,6,8,9,2,3,{"$nulls":5},5,null,2,6,null,7,{"$nulls":4},5,null,null,8,7]
[null,1,{"$nulls":4},5,9,6,{"$nulls":5},9,null,null,4,{"$nulls":6},1,6,4]
[null,7,5,null,8,null,2,6,{"$nulls":3},9,null,null,4,{"$nulls":3},1,null,null,1,null,2,null,8,{"$nulls":3},5]
[{"$nulls":3},9,7,null,null,8,null,2,null,6,5,null,null,1,null,null,7,4,{"$nulls":3},9,null,2,null,1]
[null,3,8,null,1,{"$nulls":7},3,{"$nulls":3},8,null,null,9,null,3,{"$nulls":3},5,null,6,null,9]
[{"$nulls":3},4,null,3,null,5,7,6,{"$nulls":3},9,null,null,5,{"$nulls":7},6,5,7]
[null,null,7,3,null,6,{"$nulls":3},4,null,5,null,3,2,null,1,{"$nulls":5},2,8,null,null,5]
[null,null,1,5,null,7,{"$nulls":10},4,1,null,3,{"$nulls":4},8,null,null,7,5]

{"sheet":"Intermedio","index":1,"n_rows":15,"n_cols":31,"rows_kept":15,"merged":[[4,1,4,9],[4,11,4,19],[4,21,4,29]]}
[{"$nulls":30}," "]
[]
[]
[]
[null,"Rompecabezas nivel intermedio 1",{"$nulls":9},"Rompecabezas nivel intermedio 2",{"$nulls":9},"Rompecabezas nivel intermedio 3"]
[]
[{"$nulls":3},8,null,null,1,{"$nulls":4},8,null,null,5,null,1,null,null,9,{"$nulls":3},6,{"$nulls":4},5]
[null,null,5,{"$nulls":5},1,{"$nulls":5},6,null,9,7,{"$nulls":3},7,null,null,6,4]
[null,9,null,null,5,null,2,null,7,{"$nulls":4},4,null,7,{"$nulls":3},5,null,null,1,8,null,5,null,null,7]
[{"$nulls":5},3,{"$nulls":5},4,8,{"$nulls":6},6,{"$nulls":5},6,{"$nulls":3},7]
[{"$nulls":4},1,null,5,9,{"$nulls":5},2,{"$nulls":3},4,{"$nulls":3},1,null,null,4,null,8,null,null,2]
[{"$nulls":7},2,3,6,null,9,{"$nulls":6},1,8,null,3,{"$nulls":3},1]
[{"$nulls":4},8,null,null,7,{"$nulls":3},6,{"$nulls":3},8,null,3,{"$nulls":4},3,null,null,2,null,8,4]
[null,2,7,5,null,null,6,null,null,1,{"$nulls":3},3,1,null,6,{"$nulls":8},3,1,null,null,9]
[null,null,3,{"$nulls":5},5,null,null,7,null,null,3,null,5,null,null,2,null,null,2,{"$nulls":4},5]

{"sheet":"Experto","index":2,"n_rows":15,"n_cols":31,"rows_kept":15,"merged":[[4,1,4,9],[4,11,4,19],[4,21,4,29]]}
[{"$nulls":30}," "]
[]
[]
[]
[null,"Rompecabezas nivel experto 1",{"$nulls":9},"Rompecabezas nivel experto 2",{"$nulls":9},"Rompecabezas nivel experto 3"]
[]
[null,null,9,5,null,null,4,2,null,3,{"$nulls":3},7,4,{"$nulls":3},9,null,null,1,null,2,null,4]
[null,null,8,{"$nulls":3},6,9,{"$nulls":4},1,5,{"$nulls":3},6,{"$nulls":5},6,2,3,8,5]
[{"$nulls":18},4,5,{"$nulls":6},6,null,9]
[null,null,4,6,8,null,5,{"$nulls":4},1,{"$nulls":5},2,7,null,null,9,null,7,{"$nulls":4},5,4]
[null,7,{"$nulls":9},9,null,null,3,null,1,null,null,4,{"$nulls":4},9,8,4]
[{"$nulls":3},2,null,7,{"$nulls":6},6,4,{"$nulls":5},1,null,3,8,{"$nulls":4},1,null,9]
[null,2,{"$nulls":4},1,8,{"$nulls":3},3,2,{"$nulls":9},6,null,8]
[null,3,{"$nulls":3},8,{"$nulls":7},6,{"$nulls":3},9,8,{"$nulls":4},1,3,2,5,9]
[{"$nulls":5},3,null,4,null,1,null,null,8,{"$nulls":3},2,7,{"$nulls":7},6,null,7,null,3]

{"sheet":"Solución nivel principiante","index":3,"n_rows":15,"n_cols":31,"rows_kept":15,"merged":[[4,1,4,7],[4,8,4,9],[4,11,4,17],[4,18,4,19],[4,21,4,27],[4,28,4,29]]}
[{"$nulls":30}," "]
[]
[]
[]
[null,"Mostrar respuestas para Rompecabezas 1",{"$nulls":6},"No",null,null,"Mostrar respuestas para Rompecabezas 2",{"$nulls":6},"No",null,null,"Mostrar respuestas para Rompecabezas 3",{"$nulls":6},"No"]
[]
[null,9,2,6,3,1,7,4,8,5,null,3,2,4,1,6,7,5,9,8,null,5,6,3,2,7,8,4,9,1]
[null,5,4,7,6,8,9,2,3,1,null,1,9,8,5,4,2,6,3,7,null,2,4,1,5,3,9,8,7,6]
[null,1,3,8,4,2,5,9,6,7,null,7,6,5,9,8,3,4,2,1,null,8,9,7,1,6,4,5,3,2]
[null,7,5,1,8,9,2,6,4,3,null,9,8,7,4,2,6,3,1,5,null,1,7,2,9,8,6,3,4,5]
[null,4,6,9,7,5,3,8,1,2,null,6,5,2,3,1,9,8,7,4,null,6,5,9,4,2,3,1,8,7]
[null,3,8,2,1,4,6,7,5,9,null,4,3,1,7,5,8,2,6,9,null,3,8,4,7,5,1,6,2,9]
[null,8,9,4,2,3,1,5,7,6,null,8,1,9,6,3,5,7,4,2,null,9,3,5,6,4,7,2,1,8]
[null,2,7,3,5,6,8,1,9,4,null,5,4,3,2,7,1,9,8,6,null,7,2,8,3,1,5,9,6,4]
[null,6,1,5,9,7,4,3,2,8,null,2,7,6,8,9,4,1,5,3,null,4,1,6,8,9,2,7,5,3]

{"sheet":"Solución nivel intermedio","index":4,"n_rows":15,"n_cols":31,"rows_kept":15,"merged":[[4,1,4,7],[4,8,4,9],[4,11,4,17],[4,18,4,19],[4,21,4,27],[4,28,4,29]]}
[{"$nulls":30}," "]
[]
[]
[]
[null,"Mostrar respuestas para Rompecabezas 1",{"$nulls":6},"No",null,null,"Mostrar respuestas para Rompecabezas 2",{"$nulls":6},"No",null,null,"Mostrar respuestas para Rompecabezas 3",{"$nulls":6},"No"]
[]
[null,3,2,8,4,7,1,5,6,9,null,8,7,6,5,4,1,2,3,9,null,2,9,6,1,8,7,3,5,4]
[null,6,5,7,9,8,3,4,1,2,null,2,5,1,6,3,9,7,8,4,null,7,5,3,6,4,9,2,1,8]
[null,9,1,4,5,6,2,3,7,8,null,3,9,4,8,7,2,1,6,5,null,4,1,8,2,5,3,9,7,6]
[null,7,9,2,6,3,8,1,4,5,null,4,8,5,7,1,3,9,2,6,null,8,4,2,3,6,5,1,9,7]
[null,4,6,3,1,2,5,9,8,7,null,1,6,2,9,5,8,4,7,3,null,1,7,5,4,9,8,6,3,2]
[null,5,8,1,7,9,4,2,3,6,null,9,3,7,2,6,4,5,1,8,null,3,6,9,7,1,2,4,8,5]
[null,1,4,6,8,5,9,7,2,3,null,6,2,9,4,8,7,3,5,1,null,5,3,7,9,2,6,8,4,1]
[null,2,7,5,3,4,6,8,9,1,null,5,4,3,1,2,6,8,9,7,null,6,8,4,5,3,1,7,2,9]
[null,8,3,9,2,1,7,6,5,4,null,7,1,8,3,9,5,6,4,2,null,9,2,1,8,7,4,5,6,3]

{"sheet":"Solución nivel experto","index":5,"n_rows":27,"n_cols":31,"rows_kept":27,"merged":[[4,1,4,7],[4,8,4,9],[4,11,4,17],[4,18,4,19],[4,21,4,27],[4,28,4,29]]}
[{"$nulls":30}," "]
[]
[]
[]
[null,"Mostrar respuestas para Rompecabezas 1",{"$nulls":6},"No",null,null,"Mostrar respuestas para Rompecabezas 2",{"$nulls":6},"No",null,null,"Mostrar respuestas para Rompecabezas 3",{"$nulls":6},"No"]
[]
[null,6,9,5,7,1,4,2,8,3,null,6,3,7,4,2,5,1,9,8,null,1,3,2,5,4,9,6,7,8]
[null,1,8,3,2,5,6,9,7,4,null,4,1,5,9,3,8,6,2,7,null,7,9,6,2,3,8,5,4,1]
[null,4,2,7,3,9,8,1,5,6,null,2,9,8,1,7,6,3,4,5,null,5,4,8,1,7,6,3,9,2]
[null,9,4,6,8,2,5,3,1,7,null,1,5,3,8,6,4,2,7,9,null,9,2,7,6,1,3,8,5,4]
[null,7,1,8,6,4,3,5,9,2,null,9,7,2,3,5,1,8,6,4,null,6,1,5,9,8,4,2,3,7]
[null,5,3,2,1,7,9,6,4,8,null,8,6,4,2,9,7,5,3,1,null,3,8,4,7,5,2,1,6,9]
[null,2,7,4,9,6,1,8,3,5,null,3,2,1,7,8,9,4,5,6,null,2,6,3,8,9,7,4,1,5]
[null,3,5,1,4,8,2,7,6,9,null,7,4,6,5,1,3,9,8,2,null,4,7,1,3,2,5,9,8,6]
[null,8,6,9,5,3,7,4,2,1,null,5,8,9,6,4,2,7,1,3,null,8,5,9,4,6,1,7,2,3]
[]
[{"$nulls":29},{"$f":"COUNTIF(V19:AD28,FALSE)","v":51}]
[]
[{"$nulls":21},{"$f":"IF(Experto!V7='Solución nivel experto'!V7,TRUE,FALSE)","v":true},{"$f":"IF(Experto!W7='Solución nivel experto'!W7,TRUE,FALSE)","v":false},{"$f":"IF(Experto!X7='Solución nivel experto'!X7,TRUE,FALSE)","v":true},{"$f":"IF(Experto!Y7='Solución nivel experto'!Y7,TRUE,FALSE)","v":false},{"$f":"IF(Experto!Z7='Solución nivel experto'!Z7,TRUE,FALSE)","v":true},{"$f":"IF(Experto!AA7='Solución nivel experto'!AA7,TRUE,FALSE)","v":false},{"$f":"IF(Experto!AB7='Solución nivel experto'!AB7,TRUE,FALSE)","v":false},{"$f":"IF(Experto!AC7='Solución nivel experto'!AC7,TRUE,FALSE)","v":false},{"$f":"IF(Experto!AD7='Solución nivel experto'!AD7,TRUE,FALSE)","v":false}]
[{"$nulls":21},{"$f":"IF(Experto!V8='Solución nivel experto'!V8,TRUE,FALSE)","v":false},{"$f":"IF(Experto!W8='Solución nivel experto'!W8,TRUE,FALSE)","v":false},{"$f":"IF(Experto!X8='Solución nivel experto'!X8,TRUE,FALSE)","v":true},{"$f":"IF(Experto!Y8='Solución nivel experto'!Y8,TRUE,FALSE)","v":true},{"$f":"IF(Experto!Z8='Solución nivel experto'!Z8,TRUE,FALSE)","v":true},false,{"$f":"IF(Experto!AB8='Solución nivel experto'!AB8,TRUE,FALSE)","v":true},{"$f":"IF(Experto!AC8='Solución nivel experto'!AC8,TRUE,FALSE)","v":false},{"$f":"IF(Experto!AD8='Solución nivel experto'!AD8,TRUE,FALSE)","v":false}]
[{"$nulls":21},{"$f":"IF(Experto!V9='Solución nivel experto'!V9,TRUE,FALSE)","v":false},{"$f":"IF(Experto!W9='Solución nivel experto'!W9,TRUE,FALSE)","v":false},{"$f":"IF(Experto!X9='Solución nivel experto'!X9,TRUE,FALSE)","v":false},{"$f":"IF(Experto!Y9='Solución nivel experto'!Y9,TRUE,FALSE)","v":false},{"$f":"IF(Experto!Z9='Solución nivel experto'!Z9,TRUE,FALSE)","v":false},{"$f":"IF(Experto!AA9='Solución nivel experto'!AA9,TRUE,FALSE)","v":true},{"$f":"IF(Experto!AB9='Solución nivel experto'!AB9,TRUE,FALSE)","v":false},{"$f":"IF(Experto!AC9='Solución nivel experto'!AC9,TRUE,FALSE)","v":true},{"$f":"IF(Experto!AD9='Solución nivel experto'!AD9,TRUE,FALSE)","v":false}]
[{"$nulls":21},{"$f":"IF(Experto!V10='Solución nivel experto'!V10,TRUE,FALSE)","v":true},{"$f":"IF(Experto!W10='Solución nivel experto'!W10,TRUE,FALSE)","v":false},{"$f":"IF(Experto!X10='Solución nivel experto'!X10,TRUE,FALSE)","v":true},{"$f":"IF(Experto!Y10='Solución nivel experto'!Y10,TRUE,FALSE)","v":false},{"$f":"IF(Experto!Z10='Solución nivel experto'!Z10,TRUE,FALSE)","v":false},{"$f":"IF(Experto!AA10='Solución nivel experto'!AA10,TRUE,FALSE)","v":false},{"$f":"IF(Experto!AB10='Solución nivel experto'!AB10,TRUE,FALSE)","v":false},{"$f":"IF(Experto!AC10='Solución nivel experto'!AC10,TRUE,FALSE)","v":true},{"$f":"IF(Experto!AD10='Solución nivel experto'!AD10,TRUE,FALSE)","v":true}]
[{"$nulls":21},{"$f":"IF(Experto!V11='Solución nivel experto'!V11,TRUE,FALSE)","v":false},{"$f":"IF(Experto!W11='Solución nivel experto'!W11,TRUE,FALSE)","v":false},{"$f":"IF(Experto!X11='Solución nivel experto'!X11,TRUE,FALSE)","v":false},{"$f":"IF(Experto!Y11='Solución nivel experto'!Y11,TRUE,FALSE)","v":true},{"$f":"IF(Experto!Z11='Solución nivel experto'!Z11,TRUE,FALSE)","v":true},{"$f":"IF(Experto!AA11='Solución nivel experto'!AA11,TRUE,FALSE)","v":true},{"$f":"IF(Experto!AB11='Solución nivel experto'!AB11,TRUE,FALSE)","v":false},{"$f":"IF(Experto!AC11='Solución nivel experto'!AC11,TRUE,FALSE)","v":false},{"$f":"IF(Experto!AD11='Solución nivel experto'!AD11,TRUE,FALSE)","v":false}]
[{"$nulls":21},{"$f":"IF(Experto!V12='Solución nivel experto'!V12,TRUE,FALSE)","v":true},{"$f":"IF(Experto!W12='Solución nivel experto'!W12,TRUE,FALSE)","v":true},{"$f":"IF(Experto!X12='Solución nivel experto'!X12,TRUE,FALSE)","v":false},{"$f":"IF(Experto!Y12='Solución nivel experto'!Y12,TRUE,FALSE)","v":false},{"$f":"IF(Experto!Z12='Solución nivel experto'!Z12,TRUE,FALSE)","v":false},{"$f":"IF(Experto!AA12='Solución nivel experto'!AA12,TRUE,FALSE)","v":false},{"$f":"IF(Experto!AB12='Solución nivel experto'!AB12,TRUE,FALSE)","v":true},{"$f":"IF(Experto!AC12='Solución nivel experto'!AC12,TRUE,FALSE)","v":false},{"$f":"IF(Experto!AD12='Solución nivel experto'!AD12,TRUE,FALSE)","v":true}]
[{"$nulls":21},{"$f":"IF(Experto!V13='Solución nivel experto'!V13,TRUE,FALSE)","v":false},{"$f":"IF(Experto!W13='Solución nivel experto'!W13,TRUE,FALSE)","v":true},{"$f":"IF(Experto!X13='Solución nivel experto'!X13,TRUE,FALSE)","v":false},{"$f":"IF(Experto!Y13='Solución nivel experto'!Y13,TRUE,FALSE)","v":true},{"$f":"IF(Experto!Z13='Solución nivel experto'!Z13,TRUE,FALSE)","v":false},{"$f":"IF(Experto!AA13='Solución nivel experto'!AA13,TRUE,FALSE)","v":false},{"$f":"IF(Experto!AB13='Solución nivel experto'!AB13,TRUE,FALSE)","v":false},{"$f":"IF(Experto!AC13='Solución nivel experto'!AC13,TRUE,FALSE)","v":false},{"$f":"IF(Experto!AD13='Solución nivel experto'!AD13,TRUE,FALSE)","v":false}]
[{"$nulls":21},{"$f":"IF(Experto!V14='Solución nivel experto'!V14,TRUE,FALSE)","v":false},{"$f":"IF(Experto!W14='Solución nivel experto'!W14,TRUE,FALSE)","v":false},{"$f":"IF(Experto!X14='Solución nivel experto'!X14,TRUE,FALSE)","v":true},{"$f":"IF(Experto!Y14='Solución nivel experto'!Y14,TRUE,FALSE)","v":true},{"$f":"IF(Experto!Z14='Solución nivel experto'!Z14,TRUE,FALSE)","v":true},{"$f":"IF(Experto!AA14='Solución nivel experto'!AA14,TRUE,FALSE)","v":true},{"$f":"IF(Experto!AB14='Solución nivel experto'!AB14,TRUE,FALSE)","v":true},{"$f":"IF(Experto!AC14='Solución nivel experto'!AC14,TRUE,FALSE)","v":false},{"$f":"IF(Experto!AD14='Solución nivel experto'!AD14,TRUE,FALSE)","v":false}]
[{"$nulls":21},{"$f":"IF(Experto!V15='Solución nivel experto'!V15,TRUE,FALSE)","v":false},{"$f":"IF(Experto!W15='Solución nivel experto'!W15,TRUE,FALSE)","v":false},{"$f":"IF(Experto!X15='Solución nivel experto'!X15,TRUE,FALSE)","v":false},{"$f":"IF(Experto!Y15='Solución nivel experto'!Y15,TRUE,FALSE)","v":false},{"$f":"IF(Experto!Z15='Solución nivel experto'!Z15,TRUE,FALSE)","v":true},{"$f":"IF(Experto!AA15='Solución nivel experto'!AA15,TRUE,FALSE)","v":false},{"$f":"IF(Experto!AB15='Solución nivel experto'!AB15,TRUE,FALSE)","v":true},{"$f":"IF(Experto!AC15='Solución nivel experto'!AC15,TRUE,FALSE)","v":false},{"$f":"IF(Experto!AD15='Solución nivel experto'!AD15,TRUE,FALSE)","v":true}]

{"sheet":"Instrucciones","index":6,"n_rows":1,"n_cols":31,"rows_kept":1}
[{"$nulls":30}," "]